fUST/lending_fUST_20250817
["ID","MTS","AMOUNT","RATE_DAILY","PERIOD"]
[379817328,1755418246276,-480.0,0.00019596,2]
[379817330,1755418246286,-480.0,0.00019596,2]
[379817332,1755418246296,-752.29,0.00019596,2]
[379817334,1755418246305,-480.0,0.00019596,2]
[379817336,1755418246314,-400.0,0.00019596,2]
[379817338,1755418246323,-882.03,0.00019596,2]
[379817339,1755418246332,-480.0,0.00019596,2]
[379817341,1755418246342,-480.0,0.00019596,2]
[379817356,1755418246351,-480.0,0.00019596,2]
[379817358,1755418246497,-1697.74,0.00019596,2]
[379817359,1755418246508,-415.13,0.00019596,2]
[379817360,1755418246518,-480.0,0.00019596,2]
[379817361,1755418246527,-480.0,0.00019596,2]
[379817362,1755418246536,-485.79,0.00019596,2]
[379817363,1755418246546,-480.0,0.00019596,2]
[379817364,1755418246555,-480.0,0.00019596,2]
[379817365,1755418246565,-338.10959899,0.00019596,2]
[379817366,1755418246575,-480.0,0.00019596,2]
[379817367,1755418246584,-480.0,0.00019596,2]
[379817368,1755418246593,-480.0,0.00019596,2]
[379817369,1755418246602,-480.0,0.00019596,2]
[379817370,1755418246611,-480.0,0.00019596,2]
[379817371,1755418246620,-480.0,0.00019596,2]
[379817372,1755418246629,-480.0,0.00019596,2]
[379817374,1755418246640,-480.0,0.00019596,2]
[379817376,1755418246657,-572.9,0.00019596,2]
[379817378,1755418246667,-615.56,0.00019596,2]
[379817380,1755418246680,-480.0,0.00019596,2]
[379817381,1755418246698,-583.22,0.00019596,2]
[379817383,1755418246712,-480.0,0.00019596,2]
[379817385,1755418246723,-480.0,0.00019596,2]
[379817387,1755418246733,-480.0,0.00019596,2]
[379817389,1755418246742,-524.02312099,0.00019598,2]
[379817391,1755418246752,-4787.11,0.00019598,2]
[379817393,1755418246762,-480.0,0.00019598,2]
[379817395,1755418246771,-1355.59,0.00019598,2]
[379817397,1755418246781,-480.0,0.00019598,2]
[379817399,1755418246790,-914.69,0.00019598,2]
[379817401,1755418246800,-480.0,0.00019598,2]
[379817403,1755418246809,-515.26,0.00019598,2]
[379817405,1755418246819,-144160.39437567,0.00019599,2]
[379817407,1755418246830,-500.0,0.00019634,2]
[379817409,1755418246840,-500.0,0.00019682,2]
[379817411,1755418246849,-480.0,0.00019687,2]
[379817413,1755418246860,-500.0,0.00019687,2]
[379817415,1755418246869,-508.42,0.00019696,2]
[379817417,1755418246879,-584.94577094,0.00019696,2]
[379817419,1755418246888,-480.0,0.00019696,2]
[379817421,1755418246898,-591.21,0.00019696,2]
[379817423,1755418246907,-480.0,0.00019696,2]
[379817425,1755418246916,-480.0,0.00019696,2]
[379817427,1755418246926,-480.0,0.00019696,2]
[379817429,1755418246936,-480.0,0.00019696,2]
[379817431,1755418246948,-480.0,0.00019696,2]
[379817433,1755418246958,-480.0,0.00019696,2]
[379817435,1755418246967,-480.0,0.00019696,2]
[379817437,1755418246976,-484.26818298,0.00019696,2]
[379817439,1755418246985,-771.27,0.00019696,2]
[379817441,1755418246994,-475.91,0.00019696,2]
[379817443,1755418247004,-480.0,0.00019696,2]
[379817445,1755418247014,-500.61,0.00019696,2]
[379817447,1755418247023,-480.0,0.00019696,2]
[379817449,1755418247032,-480.0,0.00019696,2]
[379817451,1755418247042,-480.0,0.00019696,2]
[379817453,1755418247051,-480.0,0.00019696,2]
[379817455,1755418247061,-480.0,0.00019696,2]
[379817457,1755418247070,-500.0,0.00019696,2]
[379817459,1755418247085,-480.0,0.00019696,2]
[379817461,1755418247094,-480.0,0.00019696,2]
[379817463,1755418247103,-480.0,0.00019696,2]
[379817465,1755418247113,-480.0,0.00019696,2]
[379817467,1755418247122,-480.0,0.00019697,2]
[379817469,1755418247132,-504.35689093,0.00019697,2]
[379817471,1755418247141,-480.0,0.00019697,2]
[379817473,1755418247151,-480.0,0.00019697,2]
[379817475,1755418247161,-480.0,0.00019697,2]
[379817477,1755418247171,-279.79234266,0.00019697,2]
[379817479,1755418247181,-480.0,0.00019697,2]
[379817481,1755418247191,-480.0,0.00019697,2]
[379817483,1755418247200,-480.0,0.00019697,2]
[379817485,1755418247209,-522.07958401,0.00019697,2]
[379817487,1755418247218,-480.0,0.00019697,2]
[379817489,1755418247228,-480.0,0.00019697,2]
[379817491,1755418247238,-480.0,0.00019697,2]
[379817493,1755418247247,-480.0,0.00019697,2]
[379817495,1755418247257,-480.0,0.00019697,2]
[379817497,1755418247267,-480.0,0.00019697,2]
[379817499,1755418247276,-480.0,0.00019697,2]
[379817501,1755418247286,-480.0,0.00019697,2]
[379817503,1755418247296,-480.0,0.00019697,2]
[379817505,1755418247305,-480.0,0.00019697,2]
[379817506,1755418247315,-480.0,0.00019697,2]
[379817508,1755418247325,-480.0,0.00019697,2]
[379817511,1755418247335,-480.0,0.00019697,2]
[379817512,1755418247345,-480.0,0.00019697,2]
[379817514,1755418247354,-480.0,0.00019697,2]
[379817516,1755418247364,-617.19,0.00019697,2]
[379817519,1755418247373,-480.0,0.00019697,2]
[379817520,1755418247384,-480.0,0.00019697,2]
[379817523,1755418247393,-480.0,0.00019697,2]
[379817525,1755418247403,-480.0,0.00019697,2]
[379817526,1755418247412,-480.0,0.00019697,2]
[379817528,1755418247422,-480.0,0.00019697,2]
[379817530,1755418247432,-445.06523156,0.00019697,2]
[379817532,1755418247442,-486.85643991,0.00019697,2]
[379817534,1755418247452,-480.0,0.00019697,2]
[379817536,1755418247462,-480.0,0.00019697,2]
[379817538,1755418247471,-500.0,0.00019697,2]
[379817540,1755418247481,-480.0,0.00019697,2]
[379817542,1755418247491,-480.0,0.00019697,2]
[379817545,1755418247501,-480.0,0.00019697,2]
[379817547,1755418247510,-480.0,0.00019697,2]
[379817549,1755418247519,-480.0,0.00019697,2]
[379817550,1755418247529,-480.0,0.00019697,2]
[379817553,1755418247539,-500.0,0.00019697,2]
[379817554,1755418247548,-480.0,0.00019697,2]
[379817557,1755418247558,-288.62,0.00019697,2]
[379817558,1755418247567,-480.0,0.00019697,2]
[379817560,1755418247576,-526.48,0.00019697,2]
[379817563,1755418247586,-245.58505684,0.00019697,2]
[379817565,1755418247595,-480.0,0.00019697,2]
[379817566,1755418247605,-499.61,0.00019697,2]
[379817568,1755418247615,-480.0,0.00019697,2]
[379817570,1755418247625,-480.0,0.00019697,2]
[379817573,1755418247635,-480.0,0.00019697,2]
[379817575,1755418247644,-480.0,0.00019697,2]
[379817577,1755418247654,-480.0,0.00019697,2]
[379817578,1755418247663,-5943.85,0.00019697,2]
[379817580,1755418247672,-480.0,0.00019698,2]
[379817582,1755418247682,-557.19,0.00019698,2]
[379817584,1755418247691,-480.0,0.00019698,2]
[379817586,1755418247700,-480.0,0.00019698,2]
[379817588,1755418247709,-697.14,0.00019698,2]
[379817590,1755418247719,-857.16,0.00019698,2]
[379817592,1755418247728,-4179.63,0.00019698,2]
[379817594,1755418247737,-480.0,0.00019698,2]
[379817596,1755418247747,-480.0,0.00019698,2]
[379817598,1755418247756,-480.0,0.00019698,2]
[379817600,1755418247765,-1078.06,0.00019699,2]
[379817602,1755418247775,-1248.04,0.00019699,2]
[379817604,1755418247785,-13917.83183326,0.0001976,2]
[379817606,1755418247795,-480.0,0.00019856,2]
[379817608,1755418247805,-1217.61,0.00019856,2]
[379817610,1755418247815,-351.31,0.00019856,2]
[379817613,1755418247824,-945.86,0.0001986,2]
[379817614,1755418247833,-480.0,0.0001986,2]
[379817616,1755418247842,-853.27,0.0001986,2]
[379817618,1755418247852,-588.94,0.0001986,2]
[379817620,1755418247861,-1332.74,0.0001986,2]
[379817622,1755418247870,-853.13,0.0001986,2]
[379817624,1755418247879,-496.50340355,0.0001986,2]
[379817627,1755418247890,-480.0,0.0001986,2]
[379817628,1755418247901,-2416.13,0.0001986,2]
[379817630,1755418247910,-480.0,0.0001986,2]
[379817632,1755418247921,-514.13,0.0001986,2]
[379817635,1755418247931,-478.278535,0.00019863,2]
[379817637,1755418247940,-485.29235177,0.0001987,2]
[379817639,1755418247950,-485.42441623,0.0001987,2]
[379817641,1755418247959,-274.77843017,0.0001987,2]
[379817643,1755418247969,-480.0,0.0001987,2]
[379817645,1755418247978,-752.29,0.0001987,2]
[379817647,1755418247987,-480.0,0.0001987,2]
[379817649,1755418247996,-882.03,0.0001987,2]
[379817651,1755418248005,-159.67,0.0001987,2]
[379817653,1755418248015,-480.0,0.0001987,2]
[379817654,1755418248024,-480.0,0.0001987,2]
[379817656,1755418248034,-1697.74,0.0001987,2]
[379817659,1755418248044,-480.0,0.0001987,2]
[379817660,1755418248053,-480.0,0.0001987,2]
[379817662,1755418248062,-485.79,0.0001987,2]
[379817664,1755418248071,-539.34284326,0.0001987,2]
[379817666,1755418248085,-480.0,0.0001987,2]
[379817668,1755418248094,-480.0,0.0001987,2]
[379817670,1755418248104,-480.0,0.0001987,2]
[379817672,1755418248114,-480.0,0.0001987,2]
[379817675,1755418248124,-480.0,0.0001987,2]
[379817677,1755418248134,-583.22,0.0001987,2]
[379817679,1755418248144,-480.0,0.0001987,2]
[379817680,1755418248153,-480.0,0.0001987,2]
[379817682,1755418248164,-480.0,0.0001987,2]
[379817684,1755418248173,-4787.11,0.00019872,2]
[379817686,1755418248183,-480.0,0.00019872,2]
[379817688,1755418248193,-1355.59,0.00019872,2]
[379817690,1755418248203,-914.69,0.00019872,2]
[379817692,1755418248212,-480.0,0.00019872,2]
[379817695,1755418248222,-573.06,0.00019872,2]
[379817697,1755418248231,-515.26,0.00019872,2]
[379817699,1755418248241,-551.67,0.00019877,2]
[379817700,1755418248251,-480.0,0.00019883,2]
[379817702,1755418248260,-544.97435923,0.00019899,2]
[379817704,1755418248269,-168.0,0.00019941,2]
[379817707,1755418248280,-508.42,0.0001997,2]
[379817709,1755418248289,-480.0,0.0001997,2]
[379817710,1755418248299,-591.21,0.0001997,2]
[379817712,1755418248309,-480.0,0.0001997,2]
[379817715,1755418248319,-480.0,0.0001997,2]
[379817716,1755418248328,-151.87,0.0001997,2]
[379817718,1755418248338,-480.0,0.0001997,2]
[379817720,1755418248347,-771.27,0.0001997,2]
[379817722,1755418248356,-480.0,0.0001997,2]
[379817724,1755418248366,-500.61,0.0001997,2]
[379817726,1755418248375,-480.0,0.0001997,2]
[379817728,1755418248385,-480.0,0.0001997,2]
[379817730,1755418248394,-480.0,0.0001997,2]
[379817732,1755418248403,-485.21774408,0.0001997,2]
[379817734,1755418248412,-480.0,0.0001997,2]
[379817736,1755418248422,-480.0,0.00019971,2]
[379817738,1755418248431,-480.0,0.00019971,2]
[379817740,1755418248440,-483.71272806,0.00019971,2]
[379817742,1755418248449,-480.0,0.00019971,2]
[379817744,1755418248459,-480.0,0.00019971,2]
[379817746,1755418248468,-483.79181448,0.00019971,2]
[379817748,1755418248478,-480.0,0.00019971,2]
[379817750,1755418248488,-480.0,0.00019971,2]
[379817752,1755418248498,-480.0,0.00019971,2]
[379817754,1755418248507,-480.0,0.00019971,2]
[379817756,1755418248517,-360.0,0.00019971,2]
[379817758,1755418248526,-480.0,0.00019971,2]
[379817760,1755418248535,-5943.85,0.00019971,2]
[379817762,1755418248545,-480.0,0.00019972,2]
[379817765,1755418248555,-480.0,0.00019972,2]
[379817767,1755418248564,-440.08683214,0.00019972,2]
[379817769,1755418248574,-697.14,0.00019972,2]
[379817771,1755418248583,-857.16,0.00019972,2]
[379817773,1755418248593,-4179.63,0.00019972,2]
[379817775,1755418248602,-480.0,0.00019972,2]
[379817777,1755418248612,-480.0,0.00019972,2]
[379817779,1755418248622,-480.0,0.00019972,2]
[379817781,1755418248631,-1078.06,0.00019973,2]
[379817783,1755418248641,-1248.04,0.00019973,2]
[379817785,1755418248651,-335.05879068,0.00019992,2]
[379817787,1755418248660,-191.50322264,0.0002,2]
[379817789,1755418248671,-160.0,0.0002,3]
[379817791,1755418248680,-500.0,0.0002,2]
[379817793,1755418248689,-1665.0,0.00020084,2]
[379817795,1755418248699,-200.0,0.00020089,20]
[379817797,1755418248708,-200.0,0.00020089,20]
[379817799,1755418248717,-200.0,0.00020089,20]
[379817801,1755418248726,-200.0,0.00020089,20]
[379817803,1755418248735,-200.0,0.00020089,20]
[379817805,1755418248745,-200.0,0.00020089,20]
[379817807,1755418248754,-200.0,0.00020089,20]
[379817809,1755418248764,-200.0,0.00020089,20]
[379817811,1755418248773,-200.0,0.00020089,20]
[379817813,1755418248782,-200.0,0.00020089,20]
[379817815,1755418248791,-600.0,0.00020089,20]
[379817817,1755418248801,-480.0,0.0002013,2]
[379817819,1755418248810,-1217.61,0.0002013,2]
[379817821,1755418248820,-945.86,0.00020134,2]
[379817823,1755418248829,-480.0,0.00020134,2]
[379817825,1755418248839,-853.27,0.00020134,2]
[379817827,1755418248848,-1332.74,0.00020134,2]
[379817829,1755418248858,-853.13,0.00020134,2]
[379817831,1755418248867,-480.0,0.00020134,2]
[379817833,1755418248876,-2416.13,0.00020134,2]
[379817835,1755418248885,-480.0,0.00020134,2]
[379817837,1755418248895,-514.13,0.00020134,2]
[379817839,1755418248904,-160.18832127,0.00020137,2]
[379817841,1755418248913,-503.11243999,0.00020139,2]
[379817843,1755418248922,-480.0,0.00020144,2]
[379817845,1755418248931,-752.29,0.00020144,2]
[379817847,1755418248941,-480.0,0.00020144,2]
[379817849,1755418248950,-882.03,0.00020144,2]
[379817851,1755418248959,-480.0,0.00020144,2]
[379817853,1755418248969,-480.0,0.00020144,2]
[379817855,1755418248979,-1697.74,0.00020144,2]
[379817857,1755418248988,-604.79,0.00020144,2]
[379817859,1755418248997,-480.0,0.00020144,2]
[379817861,1755418249007,-485.79,0.00020144,2]
[379817863,1755418249017,-480.0,0.00020144,2]
[379817865,1755418249026,-480.0,0.00020144,2]
[379817867,1755418249035,-480.0,0.00020144,2]
[379817869,1755418249044,-480.0,0.00020144,2]
[379817871,1755418249054,-480.0,0.00020144,2]
[379817873,1755418249063,-583.22,0.00020144,2]
[379817875,1755418249072,-480.0,0.00020144,2]
[379817876,1755418249084,-480.0,0.00020144,2]
[379817878,1755418249093,-480.0,0.00020144,2]
[379817880,1755418249102,-4787.11,0.00020146,2]
[379817882,1755418249114,-480.0,0.00020146,2]
[379817884,1755418249125,-1355.59,0.00020146,2]
[379817887,1755418249135,-914.69,0.00020146,2]
[379817888,1755418249144,-480.0,0.00020146,2]
[379817891,1755418249156,-515.26,0.00020146,2]
[379817893,1755418249166,-480.0,0.00020157,2]
[379817895,1755418249175,-500.0,0.00020165,2]
[379817897,1755418249185,-500.0,0.00020165,2]
[379817899,1755418249195,-500.0,0.00020165,2]
[379817901,1755418249204,-599.94270815,0.00020165,2]
[379817902,1755418249213,-501.2936446,0.00020165,2]
[379817904,1755418249222,-348.69065731,0.00020165,2]
[379817906,1755418249231,-500.0,0.00020165,2]
[379817909,1755418249241,-500.0,0.00020165,2]
[379817910,1755418249251,-500.0,0.00020165,2]
[379817912,1755418249260,-500.0,0.0002017,2]
[379817914,1755418249270,-500.0,0.0002017,2]
[379817917,1755418249279,-500.0,0.0002017,2]
[379817919,1755418249289,-500.0,0.0002017,2]
[379817921,1755418249298,-500.0,0.0002017,2]
[379817923,1755418249307,-500.0,0.0002017,2]
[379817924,1755418249316,-500.0,0.0002017,2]
[379817927,1755418249326,-500.0,0.0002017,2]
[379817929,1755418249336,-438.265017,0.00020187,2]
[379817931,1755418249346,-500.0,0.00020204,2]
[379817933,1755418249355,-500.0,0.00020204,2]
[379817934,1755418249364,-500.0,0.00020204,2]
[379817937,1755418249374,-500.0,0.00020204,2]
[379817951,1755418249503,-500.0,0.00020204,2]
[379817953,1755418249512,-500.0,0.00020204,2]
[379817955,1755418249521,-160.0,0.00020239,2]
[379817957,1755418249531,-528.48506731,0.00020239,2]
[379817959,1755418249541,-417.15472785,0.00020239,2]
[379817961,1755418249550,-160.0,0.00020239,2]
[379817963,1755418249560,-215.71995163,0.00020239,2]
[379817965,1755418249569,-375.77065697,0.00020239,2]
[379817967,1755418249579,-160.0,0.00020239,2]
[379817969,1755418249589,-232.1512529,0.00020239,2]
[379817971,1755418249598,-160.0,0.00020239,2]
[379817973,1755418249607,-160.0,0.00020239,2]
[379817975,1755418249617,-160.0,0.00020239,2]
[379817977,1755418249627,-160.0,0.00020239,2]
[379817979,1755418249636,-843.71309931,0.00020239,2]
[379817981,1755418249645,-160.0,0.00020239,2]
[379817983,1755418249654,-160.0,0.00020239,2]
[379817985,1755418249664,-12682.46447135,0.00020239,2]
[379817987,1755418249674,-508.42,0.00020244,2]
[379817989,1755418249684,-480.0,0.00020244,2]
[379817991,1755418249693,-591.21,0.00020244,2]
[379817993,1755418249703,-480.0,0.00020244,2]
[379817995,1755418249712,-480.0,0.00020244,2]
[379817997,1755418249721,-480.0,0.00020244,2]
[379817999,1755418249730,-771.27,0.00020244,2]
[379818001,1755418249740,-480.0,0.00020244,2]
[379818003,1755418249749,-500.61,0.00020244,2]
[379818005,1755418249760,-480.0,0.00020244,2]
[379818007,1755418249769,-480.0,0.00020244,2]
[379818009,1755418249778,-480.0,0.00020244,2]
[379818011,1755418249787,-480.0,0.00020244,2]
[379818013,1755418249797,-480.0,0.00020245,2]
[379818015,1755418249806,-480.0,0.00020245,2]
[379818017,1755418249815,-483.58945004,0.00020245,2]
[379818019,1755418249825,-480.0,0.00020245,2]
[379818021,1755418249834,-480.0,0.00020245,2]
[379818023,1755418249844,-480.0,0.00020245,2]
[379818025,1755418249853,-155.53,0.00020245,2]
[379818027,1755418249863,-5943.85,0.00020245,2]
[379818029,1755418249872,-480.0,0.00020246,2]
[379818031,1755418249881,-480.0,0.00020246,2]
[379818033,1755418249891,-697.14,0.00020246,2]
[379818035,1755418249900,-857.16,0.00020246,2]
[379818037,1755418249910,-4179.63,0.00020246,2]
[379818039,1755418249919,-480.0,0.00020246,2]
[379818041,1755418249928,-480.0,0.00020246,2]
[379818043,1755418249938,-480.0,0.00020246,2]
[379818045,1755418249947,-1078.06,0.00020247,2]
[379818047,1755418249957,-1248.04,0.00020247,2]
[379818049,1755418249966,-544.97435923,0.00020265,2]
[379818052,1755418249976,-1665.0,0.00020283,2]
[379818054,1755418249985,-160.18832127,0.00020384,2]
[379818056,1755418249995,-541.8,0.00020384,2]
[379818058,1755418250006,-151.0,0.000204,4]
[379818060,1755418250015,-51729.46389489,0.000204,3]
[379818062,1755418250024,-480.0,0.00020404,2]
[379818064,1755418250033,-1217.61,0.00020404,2]
[379818066,1755418250043,-945.86,0.00020408,2]
[379818068,1755418250052,-853.27,0.00020408,2]
[379818070,1755418250061,-1332.74,0.00020408,2]
[379818072,1755418250071,-853.13,0.00020408,2]
[379818074,1755418250083,-480.0,0.00020408,2]
[379818076,1755418250092,-2416.13,0.00020408,2]
[379818078,1755418250102,-480.0,0.00020408,2]
[379818080,1755418250111,-514.13,0.00020408,2]
[379818082,1755418250120,-480.0,0.00020418,2]
[379818084,1755418250129,-752.29,0.00020418,2]
[379818086,1755418250138,-480.0,0.00020418,2]
[379818088,1755418250147,-882.03,0.00020418,2]
[379818090,1755418250156,-441.1,0.00020418,2]
[379818092,1755418250166,-480.0,0.00020418,2]
[379818094,1755418250175,-1697.74,0.00020418,2]
[379818096,1755418250184,-480.0,0.00020418,2]
[379818098,1755418250194,-485.79,0.00020418,2]
[379818100,1755418250204,-480.0,0.00020418,2]
[379818102,1755418250213,-480.0,0.00020418,2]
[379818104,1755418250222,-480.0,0.00020418,2]
[379818106,1755418250231,-480.0,0.00020418,2]
[379818108,1755418250242,-480.0,0.00020418,2]
[379818110,1755418250252,-583.22,0.00020418,2]
[379818112,1755418250262,-480.0,0.00020418,2]
[379818114,1755418250272,-275.25630492,0.00020418,2]
[379818116,1755418250282,-4787.11,0.0002042,2]
[379818118,1755418250291,-480.0,0.0002042,2]
[379818120,1755418250301,-1355.59,0.0002042,2]
[379818122,1755418250310,-914.69,0.0002042,2]
[379818124,1755418250320,-480.0,0.0002042,2]
[379818126,1755418250329,-515.26,0.0002042,2]
[379818128,1755418250339,-480.0,0.00020431,2]
[379818130,1755418250348,-8842.51325704,0.000205,2]
[379818145,1755418250489,-7837.20674296,0.000205,2]
[379818147,1755418250499,-18696.36,0.000205,2]
[379818149,1755418250509,-541.8,0.00020517,2]
[379818151,1755418250519,-508.42,0.00020518,2]
[379818153,1755418250529,-480.0,0.00020518,2]
[379818155,1755418250538,-591.21,0.00020518,2]
[379818157,1755418250548,-480.0,0.00020518,2]
[379818159,1755418250558,-480.0,0.00020518,2]
[379818161,1755418250568,-369.74041816,0.00020518,2]
[379818163,1755418250577,-771.27,0.00020518,2]
[379818165,1755418250587,-480.0,0.00020518,2]
[379818167,1755418250597,-500.61,0.00020518,2]
[379818169,1755418250606,-590.41367943,0.00020518,2]
[379818171,1755418250615,-480.0,0.00020518,2]
[379818173,1755418250625,-480.0,0.00020518,2]
[379818175,1755418250634,-480.0,0.00020518,2]
[379818177,1755418250643,-480.0,0.00020519,2]
[379818179,1755418250653,-480.0,0.00020519,2]
[379818181,1755418250662,-480.0,0.00020519,2]
[379818183,1755418250671,-182.57933962,0.00020519,2]
[379818185,1755418250681,-480.0,0.00020519,2]
[379818187,1755418250691,-5943.85,0.00020519,2]
[379818189,1755418250701,-480.0,0.0002052,2]
[379818191,1755418250710,-480.0,0.0002052,2]
[379818193,1755418250719,-697.14,0.0002052,2]
[379818195,1755418250728,-857.16,0.0002052,2]
[379818197,1755418250737,-4179.63,0.0002052,2]
[379818198,1755418250746,-480.0,0.0002052,2]
[379818199,1755418250756,-480.0,0.0002052,2]
[379818200,1755418250765,-480.0,0.0002052,2]
[379818201,1755418250774,-1078.06,0.00020521,2]
[379818202,1755418250784,-1248.04,0.00020521,2]
[379818203,1755418250796,-500.0,0.00020547,2]
[379818204,1755418250806,-500.0,0.00020559,2]
[379818205,1755418250815,-500.0,0.00020559,2]
[379818206,1755418250824,-500.56739781,0.000206,2]
[379818207,1755418250833,-500.0,0.000206,2]
[379818208,1755418250841,-500.0,0.000206,2]
[379818209,1755418250850,-500.0,0.000206,2]
[379818210,1755418250859,-500.5730939,0.000206,2]
[379818212,1755418250868,-500.0,0.000206,2]
[379818213,1755418250879,-500.0,0.000206,2]
[379818215,1755418250888,-714.176,0.0002061,2]
[379818217,1755418250898,-336.95706505,0.0002061,2]
[379818218,1755418250907,-151.43166117,0.0002061,2]
[379818220,1755418250916,-544.97435923,0.0002063,2]
[379818222,1755418250925,-1012.00788803,0.00020648,2]
[379818224,1755418250934,-541.8,0.0002065,2]
[379818226,1755418250944,-160.0,0.00020653,2]
[379818228,1755418250953,-501.0519514,0.00020653,2]
[379818230,1755418250962,-505.16592493,0.00020653,2]
[379818232,1755418250972,-500.0,0.00020653,2]
[379818234,1755418250982,-160.18832127,0.00020658,2]
[379818236,1755418250991,-480.0,0.00020678,2]
[379818238,1755418251000,-1217.61,0.00020678,2]
[379818240,1755418251010,-945.86,0.00020682,2]
[379818242,1755418251019,-853.27,0.00020682,2]
[379818244,1755418251028,-1332.74,0.00020682,2]
[379818246,1755418251038,-853.13,0.00020682,2]
[379818248,1755418251047,-480.0,0.00020682,2]
[379818250,1755418251056,-2416.13,0.00020682,2]
[379818252,1755418251066,-480.0,0.00020682,2]
[379818254,1755418251075,-514.13,0.00020682,2]
[379818256,1755418251088,-480.0,0.00020692,2]
[379818258,1755418251097,-752.29,0.00020692,2]
[379818260,1755418251107,-480.0,0.00020692,2]
[379818262,1755418251117,-882.03,0.00020692,2]
[379818264,1755418251127,-480.0,0.00020692,2]
[379818266,1755418251136,-1697.74,0.00020692,2]
[379818268,1755418251145,-480.0,0.00020692,2]
[379818270,1755418251154,-485.79,0.00020692,2]
[379818272,1755418251164,-480.0,0.00020692,2]
[379818274,1755418251174,-480.0,0.00020692,2]
[379818276,1755418251187,-480.0,0.00020692,2]
[379818278,1755418251197,-480.0,0.00020692,2]
[379818280,1755418251206,-480.0,0.00020692,2]
[379818282,1755418251216,-583.22,0.00020692,2]
[379818284,1755418251225,-480.0,0.00020692,2]
[379818286,1755418251234,-4787.11,0.00020694,2]
[379818288,1755418251243,-480.0,0.00020694,2]
[379818290,1755418251253,-1355.59,0.00020694,2]
[379818292,1755418251263,-914.69,0.00020694,2]
[379818294,1755418251273,-321.3,0.00020694,2]
[379818296,1755418251283,-515.26,0.00020694,2]
[379818298,1755418251292,-1346.48043195,0.00020695,2]
[379818300,1755418251301,-605.12091804,0.00020695,2]
[379818302,1755418251310,-3772.325386,0.000207,2]
[379818304,1755418251319,-259.46009822,0.00020705,2]
[379818625,1755418254921,5000.0,0.00019551,2]
[379819049,1755418259380,203.3112737,0.00019483,2]
[379819306,1755418264668,-263.64364614,0.00019582,2]
[379819888,1755418270543,4546.31361826,0.00019551,2]
[379819892,1755418270571,453.68638174,0.00019551,2]
[379820078,1755418287102,5000.0,0.00019551,2]
[379820079,1755418291355,5636.62706316,0.00019496,2]
[379820084,1755418303799,5000.0,0.00019551,2]
[379820087,1755418309058,3909.6865551,0.00019481,2]
[379820088,1755418309086,20000.0,0.00019481,2]
[379820089,1755418309114,15345.05999859,0.00019481,2]
[379820090,1755418319338,4654.94000141,0.00019551,2]
[379820091,1755418319368,345.05999859,0.00019551,2]
[379820092,1755418323519,240.75,0.00017818,30]
[379820093,1755418323979,481.5,0.00018667,30]